bitfinex/quotes_BTCUSD_20220207
["timestamp","ask_amount","ask_price","bid_price","bid_amount"]
[1644248165834,0.02068112,43539.0,43534.0,0.057447]
[1644248166033,0.02068112,43539.0,43536.0,0.00072222]
[1644248166635,0.3780435,43546.0,43536.0,0.00072222]
[1644248166636,0.4280435,43546.0,43536.0,0.00072222]
[1644248166890,0.25549097,43574.0,43537.0,0.324742]
[1644248166891,0.15766456,43556.0,43537.0,0.324742]
[1644248167090,0.00059984,43553.0,43540.0,0.05744]
[1644248167291,0.00059984,43553.0,43541.0,0.3201923]
[1644248167491,0.00059984,43553.0,43542.0,0.20563414]
[1644248167688,0.23027244,43553.0,43541.0,0.3701923]
[1644248167890,0.00059984,43553.0,43541.0,0.3701923]
[1644248168090,0.34793918,43554.0,43541.0,0.05]
[1644248168290,0.20570229,43558.0,43541.0,0.05]
[1644248168591,0.00059993,43553.0,43542.0,0.29397746]
[1644248168791,0.00059993,43553.0,43541.0,0.25201582]
[1644248169095,0.00059993,43553.0,43542.0,0.05]
[1644248169292,0.2268878,43558.0,43542.0,0.05]
[1644248169293,0.2989584,43555.0,43542.0,0.05]
[1644248169493,0.2989584,43555.0,43539.0,0.114871]
[1644248169694,0.00059993,43553.0,43539.0,0.114871]
[1644248170193,0.00059993,43553.0,43542.0,0.05744]
[1644248170394,0.00059993,43553.0,43543.0,0.3922898]
[1644248170638,0.06838199,43557.0,43543.0,0.11487]
[1644248170839,0.00059993,43553.0,43543.0,0.529738]
[1644248171037,0.00059993,43553.0,43544.0,0.3]
[1644248171243,0.00059993,43553.0,43543.0,0.229738]
[1644248171244,0.086647,43549.0,43543.0,0.229738]
[1644248171839,0.086647,43549.0,43544.0,0.05]
[1644248172139,0.086647,43549.0,43544.0,0.04749768]
[1644248173240,0.086647,43549.0,43538.0,0.00072222]
[1644248173440,0.086647,43549.0,43540.0,0.057447]
[1644248173642,0.02100324,43550.0,43540.0,0.057447]
[1644248174586,0.32195399,43550.0,43540.0,0.057447]
[1644248174791,0.06762957,43543.0,43541.0,0.057443]
[1644248175187,0.06762957,43543.0,43535.0,0.08869321]
[1644248175387,0.2961719,43543.0,43535.0,0.08869321]
[1644248175587,0.2961719,43543.0,43538.0,0.0007222]
[1644248175788,0.641796,43599.0,43538.0,0.0007222]
[1644248175988,0.26553947,43601.0,43543.0,0.25]
[1644248176487,0.26553947,43601.0,43554.0,0.25]
[1644248176691,0.03577547,43601.0,43556.0,0.21931578]
[1644248176887,0.03577547,43601.0,43557.0,0.3]
[1644248177087,0.03577547,43601.0,43563.0,0.19996813]
[1644248177292,0.43577547,43601.0,43564.0,0.3]
[1644248177488,0.45527091,43601.0,43570.0,0.22058269]
[1644248177691,0.45527091,43601.0,43571.0,0.3]
[1644248177692,0.17012091,43601.0,43571.0,0.3]
[1644248177889,0.17012091,43601.0,43566.0,0.3]
[1644248178341,0.17012091,43601.0,43568.0,0.05]
[1644248178639,0.17012091,43601.0,43574.0,0.25233451]
[1644248178839,0.38102074,43601.0,43578.0,0.21777675]
[1644248179039,0.38102074,43601.0,43579.0,0.3]
[1644248179439,0.15062547,43601.0,43579.0,0.3]
[1644248179640,0.17231079,43601.0,43585.0,0.21778328]
[1644248179940,0.26079079,43601.0,43575.0,0.3]
[1644248180139,0.26079079,43601.0,43574.0,0.25233451]
[1644248180340,0.26079079,43601.0,43581.0,0.24868165]
[1644248180540,0.14594079,43601.0,43582.0,0.3]
[1644248180750,0.14594079,43601.0,43593.0,0.21540881]
[1644248180941,0.21474806,43601.0,43582.0,0.3]
[1644248181342,0.19306274,43601.0,43582.0,0.31862638]
[1644248181542,0.19306274,43601.0,43583.0,0.05]
[1644248182190,0.19306274,43601.0,43589.0,0.23255769]
[1644248182400,0.19306274,43601.0,43589.0,0.53255769]
[1644248182589,0.19306274,43601.0,43589.0,0.3]
[1644248183193,0.19306274,43601.0,43593.0,0.27092459]
[1644248183392,0.12425547,43601.0,43593.0,0.3]
[1644248183593,0.08948,43601.0,43600.0,0.23174365]
[1644248183893,0.02189901,43606.0,43601.0,0.88809729]
[1644248184092,0.02189901,43606.0,43604.0,0.05]
[1644248184295,0.02,43619.0,43606.0,0.81889]
[1644248184492,0.02,43619.0,43611.0,0.25]
[1644248184692,0.0155565,43619.0,43612.0,0.65]
[1644248184891,0.00184935,43613.0,43612.0,0.6]
[1644248185091,0.00184935,43613.0,43612.0,0.757354]
[1644248185294,0.0155565,43619.0,43615.0,0.057352]
[1644248185295,0.01240585,43619.0,43615.0,0.057352]
[1644248185534,0.002,43622.0,43618.0,0.3]
[1644248185734,0.22686857,43625.0,43623.0,0.2404732]
[1644248186135,0.02,43629.0,43623.0,0.2404732]
[1644248186333,0.02,43629.0,43623.0,0.21229787]
[1644248186334,0.23044,43624.0,43623.0,0.21229787]
[1644248186937,0.23044,43624.0,43614.0,0.25]
[1644248187134,0.23044,43624.0,43612.0,0.42]
[1644248187337,0.28044,43624.0,43612.0,0.42]
[1644248187735,0.28044,43624.0,43614.0,0.00018919]
[1644248187935,0.28044,43624.0,43620.0,0.21806593]
[1644248188136,0.28044,43624.0,43614.0,0.00018919]
[1644248188336,0.057366,43622.0,43614.0,0.00018919]
[1644248188536,0.18044,43621.0,43614.0,0.00018919]
[1644248188738,0.23044,43621.0,43614.0,0.00018919]
[1644248188941,0.23630884,43621.0,43614.0,0.00018919]
[1644248189391,0.0875871,43620.0,43614.0,0.00018919]
[1644248189596,0.23044,43619.0,43614.0,0.00018919]
[1644248189791,0.23130884,43619.0,43614.0,0.00018919]
[1644248189990,0.057387,43617.0,43605.0,0.01671027]
[1644248190191,0.057387,43617.0,43602.0,0.0002]
[1644248190192,1.07264,43616.0,43602.0,0.0002]
[1644248190391,1.1,43615.0,43602.0,0.0002]
[1644248190592,0.8,43613.0,43602.0,0.0002]
[1644248190895,0.114797,43610.0,43602.0,0.0002]
[1644248191093,0.099599,43609.0,43602.0,0.0002]
[1644248191497,0.099599,43609.0,43604.0,0.23703495]
[1644248191891,0.099599,43609.0,43604.0,0.15171643]
[1644248192291,0.0422,43609.0,43604.0,0.15171643]
[1644248192494,0.22972726,43617.0,43608.0,0.35]
[1644248192692,0.22972726,43617.0,43616.0,0.3]
[1644248193136,0.01957113,43623.0,43613.0,0.65]
[1644248193337,0.01957113,43623.0,43620.0,0.25]
[1644248193550,0.02,43639.0,43622.0,0.45]
[1644248193751,0.23044,43638.0,43631.0,0.8]
[1644248193940,0.19821858,43645.0,43637.0,0.15]
[1644248194246,0.00094426,43673.0,43637.0,0.15]
[1644248194247,0.64091021,43687.0,43644.0,0.65]
[1644248194441,0.64091021,43687.0,43643.0,0.05]
[1644248194442,0.057314,43661.0,43643.0,0.05]
[1644248194643,0.5,43682.0,43634.0,0.6]
[1644248194644,0.5275,43682.0,43634.0,0.6]
[1644248194840,0.01473,43669.0,43638.0,0.1]
[1644248195040,0.5775,43677.0,43639.0,1.1]
[1644248195239,0.0422,43676.0,43639.0,1.1]
[1644248195439,0.0422,43676.0,43660.0,0.21113101]
[1644248195440,0.057314,43661.0,43660.0,0.21113101]
[1644248195640,0.057314,43661.0,43660.0,0.16095481]
[1644248196039,0.057314,43661.0,43648.0,0.02037856]
[1644248196040,0.057314,43661.0,43647.0,0.3]
[1644248196239,0.057314,43661.0,43646.0,0.05]
[1644248196639,0.01777,43660.0,43646.0,0.05]
[1644248196890,0.114644,43656.0,43646.0,0.05]
[1644248197091,0.112644,43656.0,43652.0,0.19066087]
[1644248197292,0.112644,43656.0,43646.0,0.07016992]
[1644248197489,0.097914,43656.0,43646.0,0.07016992]
[1644248198090,0.05732,43657.0,43647.0,0.3]
[1644248198291,0.06777,43660.0,43647.0,0.3]
[1644248198490,0.00056582,43653.0,43647.0,0.3]
[1644248198690,0.00056582,43653.0,43648.0,0.2098865]
[1644248199291,0.02408475,43660.0,43656.0,0.22957506]
[1644248199493,0.01333582,43660.0,43656.0,0.22957506]
[1644248199693,0.01333582,43660.0,43655.0,0.1961251]
[1644248200093,0.03956834,43662.0,43655.0,0.1961251]
[1644248200292,0.35011343,43662.0,43655.0,0.1961251]
[1644248200539,0.03956834,43662.0,43655.0,0.1961251]
[1644248200735,0.13956834,43662.0,43655.0,0.1961251]
[1644248200942,0.01072206,43667.0,43661.0,0.37037856]
[1644248201236,0.03558128,43684.0,43663.0,0.8]
[1644248201436,0.001,43684.0,43664.0,0.02037856]
[1644248201634,0.001,43684.0,43667.0,0.05]
[1644248201837,0.057287,43680.0,43667.0,0.05]
[1644248202135,0.057287,43680.0,43663.0,0.85]
[1644248202136,0.3,43679.0,43655.0,2.47189848]
[1644248202335,0.0422,43682.0,43655.0,2.47189848]
[1644248202536,0.00028001,43660.0,43659.0,0.3]
[1644248202735,0.00028001,43660.0,43658.0,0.66414625]
[1644248202934,0.05758901,43660.0,43658.0,0.66414625]
[1644248203134,0.171899,43678.0,43659.0,0.65875381]
[1644248203334,0.24218639,43684.0,43667.0,0.02037856]
[1644248203335,0.001,43684.0,43667.0,0.02037856]
[1644248203534,0.001,43684.0,43667.0,0.07037856]
[1644248203735,0.05,43679.0,43663.0,0.3]
[1644248203935,0.057287,43675.0,43670.0,0.26026023]
[1644248204136,0.04979,43679.0,43670.0,0.26026023]
[1644248204391,0.04979,43679.0,43671.0,0.3]
[1644248204691,0.04979,43679.0,43670.0,0.26026023]
[1644248204892,0.04979,43679.0,43671.0,0.35]
[1644248205092,0.04979,43679.0,43672.0,0.0727264]
[1644248205390,0.04979,43679.0,43673.0,0.32037856]
[1644248205589,0.04979,43679.0,43673.0,0.02037856]
[1644248205789,0.00053619,43678.0,43673.0,0.3]
[1644248205992,0.00053619,43678.0,43674.0,0.26078997]
[1644248206189,0.13342811,43682.0,43675.0,0.24615166]
[1644248206390,0.00214443,43684.0,43677.0,0.87704522]
[1644248206593,0.28763881,43688.0,43677.0,0.8]
[1644248206792,0.28763881,43688.0,43675.0,0.24615166]
[1644248206990,0.28763881,43688.0,43676.0,0.3]
[1644248207192,0.01766,43687.0,43684.0,0.2448655]
[1644248207392,0.01766,43687.0,43685.0,0.26775735]
[1644248207596,0.01766,43687.0,43685.0,0.26275735]
[1644248207792,0.01226,43687.0,43685.0,0.26275735]
[1644248208541,0.00719425,43696.0,43686.0,1.22704522]
[1644248208744,0.00395038,43706.0,43686.0,1.22704522]
[1644248208745,0.11083718,43712.0,43708.0,0.02704522]
[1644248208945,0.02,43719.0,43714.0,0.8]
[1644248209143,0.3874575,43738.0,43714.0,0.8]
[1644248209144,14.81406904,43770.0,43715.0,0.78227771]
[1644248209342,0.3,43736.0,43718.0,0.85]
[1644248209543,0.5275,43769.0,43718.0,0.85]
[1644248209544,0.2000973,43761.0,43721.0,0.85]
[1644248209844,0.12518445,43801.0,43718.0,0.85]
[1644248209845,0.19228678,43778.0,43777.0,0.04430053]
[1644248210041,0.19228678,43778.0,43749.0,0.8]
[1644248210042,0.5,43782.0,43727.0,0.05]
[1644248210244,0.11440725,43779.0,43727.0,0.05]
[1644248210443,0.57201532,43804.0,43718.0,0.1]
[1644248210444,0.04430053,43774.0,43728.0,0.3]
[1644248210690,0.1106844,43772.0,43725.0,0.8]
[1644248210858,0.002,43731.0,43727.0,0.8]
[1644248211049,0.002,43731.0,43722.0,0.05]
[1644248211246,0.002,43731.0,43723.0,8.0]
[1644248211552,0.002,43731.0,43725.0,0.01962254]
[1644248211810,0.35,43740.0,43726.0,7.99747773]
[1644248211811,0.18933829,43732.0,43726.0,7.99747773]
[1644248211998,0.18933829,43732.0,43726.0,1.03847948]
[1644248211999,0.32826581,43729.0,43726.0,1.03847948]
[1644248212198,0.18933829,43732.0,43721.0,0.02]
[1644248212199,0.0422,43728.0,43721.0,0.02]
[1644248212396,0.00117,43742.0,43723.0,0.00013392]
[1644248212597,0.4,43771.0,43723.0,0.00013392]
[1644248212598,0.07451038,43784.0,43781.0,0.02]
[1644248212802,0.03160787,43781.0,43733.0,0.29115]
[1644248213097,0.114372,43770.0,43754.0,0.31173574]
[1644248213299,0.1,43792.0,43772.0,0.00581939]
[1644248213300,0.00117,43783.0,43772.0,0.00581939]
[1644248213500,0.2055074,43802.0,43772.0,0.00081939]
[1644248213700,0.03367482,43812.0,43780.0,0.3]
[1644248213701,0.00117,43807.0,43780.0,0.3]
[1644248213898,0.057154,43814.0,43781.0,0.3]
[1644248214097,0.057154,43814.0,43790.0,0.00108373]
[1644248214098,0.02,43799.0,43790.0,0.00108373]
[1644248214295,0.02,43799.0,43783.0,0.05]
[1644248214296,0.0147,43799.0,43788.0,0.07183955]
[1644248214496,0.02,43809.0,43804.0,0.25291551]
[1644248214698,0.571429,43858.0,43789.0,0.8]
[1644248214699,0.02,43791.0,43790.0,0.28997]
[1644248214901,0.0422,43813.0,43791.0,0.79754]
[1644248215099,0.171401,43821.0,43773.0,0.8]
[1644248215100,0.26663113,43811.0,43773.0,0.8]
[1644248215303,0.00117,43798.0,43774.0,0.3]
[1644248215543,0.00586884,43807.0,43774.0,0.3]
[1644248215544,0.00217,43795.0,43774.0,0.3]
[1644248215843,0.00217,43795.0,43772.0,0.00081939]
[1644248215844,0.0422,43794.0,43775.0,0.3]
[1644248216042,0.0422,43794.0,43772.0,0.00081939]
[1644248216043,0.00117,43790.0,43772.0,0.00081939]
[1644248216243,0.04806884,43794.0,43772.0,0.00081939]
[1644248216244,0.00117,43782.0,43772.0,0.00081939]
[1644248216444,0.07027919,43758.0,43752.0,0.04]
[1644248216644,0.34259551,43766.0,43752.0,0.04]
[1644248216645,0.0422,43764.0,43752.0,0.04]
[1644248216842,0.34259551,43766.0,43752.0,0.04]
[1644248216843,0.34259551,43766.0,43752.0,0.03]
[1644248217245,0.00586884,43763.0,43752.0,0.03]
[1644248217442,0.44259551,43766.0,43752.0,0.03]
[1644248217443,0.0422,43765.0,43752.0,0.03]
[1644248217643,0.01676,43766.0,43753.0,0.8]
[1644248217845,0.057184,43769.0,43753.0,1.1]
[1644248217846,0.00586884,43765.0,43753.0,1.1]
[1644248218043,0.057184,43769.0,43753.0,1.1]
[1644248218044,0.00051736,43757.0,43754.0,0.8]
[1644248218842,0.00051736,43757.0,43752.0,0.03]
[1644248219046,0.20825728,43753.0,43752.0,0.03]
[1644248219309,0.00051736,43758.0,43752.0,0.03]
[1644248219698,0.36330306,43753.0,43752.0,0.03]
[1644248219899,0.36330306,43753.0,43751.0,0.02]
[1644248219900,1.03300306,43753.0,43751.0,0.02]
[1644248220097,0.8,43750.0,43729.0,0.4788]
[1644248220299,0.5275,43736.0,43727.0,0.5]
[1644248220501,0.23207169,43735.0,43727.0,0.5]
[1644248220699,0.75957169,43735.0,43727.0,0.5]
[1644248220897,0.5275,43728.0,43725.0,0.25]
[1644248221097,0.12182007,43749.0,43725.0,0.55]
[1644248221098,0.1,43742.0,43725.0,0.55]
[1644248221297,0.1,43742.0,43739.0,0.05]
[1644248221298,0.0422,43741.0,43739.0,0.05]
[1644248221498,0.0422,43741.0,43738.0,0.25]
[1644248221698,0.0422,43741.0,43740.0,0.59535962]
[1644248221898,0.0422,43741.0,43740.0,0.30759893]
[1644248222103,0.26150816,43746.0,43740.0,0.59565855]
[1644248222299,0.02182007,43749.0,43745.0,0.25]
[1644248222598,0.02182007,43749.0,43746.0,0.28805962]
[1644248223938,0.28733121,43749.0,43746.0,0.26985932]
[1644248224138,0.00793,43748.0,43746.0,0.26985932]
[1644248224338,0.3472241,43748.0,43746.0,0.26985932]
[1644248224542,0.33793589,43748.0,43746.0,0.26985932]
[1644248224740,0.12691651,43756.0,43755.0,0.31985932]
[1644248224741,4.67e-06,43756.0,43755.0,0.31985932]
[1644248224938,0.01929249,43766.0,43755.0,0.64992071]
[1644248224939,0.01977853,43766.0,43755.0,0.64992071]
[1644248225140,0.01977853,43766.0,43765.0,0.07094638]
[1644248225339,0.01977853,43766.0,43765.0,0.07084638]
[1644248225939,0.01929249,43766.0,43765.0,0.07084638]
[1644248226537,0.01929249,43766.0,43765.0,0.12076709]
[1644248226789,0.01929249,43766.0,43765.0,0.07084638]
[1644248226990,0.01929249,43766.0,43765.0,0.12076709]
[1644248227192,0.01929249,43766.0,43765.0,0.07084638]
[1644248227391,0.01929249,43766.0,43755.0,0.00026108]
[1644248227392,0.08927308,43765.0,43755.0,0.00026108]
[1644248227794,0.05,43756.0,43755.0,0.00026108]
[1644248227992,0.0922,43756.0,43755.0,0.00026108]
[1644248228196,0.0422,43756.0,43755.0,0.01026108]
[1644248228391,0.0422,43756.0,43755.0,0.00026108]
[1644248229193,0.0422,43756.0,43737.0,0.5239]
[1644248229194,0.06320585,43738.0,43737.0,0.5239]
[1644248229392,0.10540585,43738.0,43737.0,0.5239]
[1644248229592,0.0422,43738.0,43737.0,0.5239]
[1644248229792,0.0922,43738.0,43737.0,0.5239]
[1644248229993,0.02182,43749.0,43737.0,0.8239]
[1644248230192,0.00117,43765.0,43748.0,0.04992071]
[1644248230193,0.01195464,43761.0,43748.0,0.04992071]
[1644248230393,0.01195464,43761.0,43754.0,0.04992071]
[1644248230643,0.01540176,43764.0,43751.0,0.04992071]
[1644248230851,0.01540176,43764.0,43748.0,0.01402]
[1644248230852,0.06704023,43759.0,43748.0,0.01402]
[1644248231043,0.02585579,43773.0,43757.0,0.22738758]
[1644248231242,0.052,43786.0,43764.0,0.04992071]
[1644248231243,0.00048615,43766.0,43764.0,0.04992071]
[1644248231443,0.00048615,43766.0,43765.0,0.04992071]
[1644248231643,0.00048615,43766.0,43763.0,0.00940176]
[1644248231846,0.00048615,43766.0,43764.0,0.04992071]
[1644248232144,0.44,43779.0,43759.0,0.34497827]
[1644248232145,0.17730381,43776.0,43759.0,0.34497827]
[1644248232344,0.17730381,43776.0,43759.0,0.3424814]
[1644248232345,0.44297862,43775.0,43759.0,0.3424814]
[1644248232544,0.44297862,43775.0,43762.0,0.00071959]
[1644248232545,0.00021138,43767.0,43762.0,0.00071959]
[1644248233145,0.00021138,43767.0,43760.0,0.28822246]
[1644248233347,0.44,43779.0,43760.0,0.28822246]
[1644248233544,0.08424877,43774.0,43760.0,0.28822246]
[1644248233745,0.08911128,43765.0,43759.0,0.3424814]
[1644248234389,0.05,43760.0,43759.0,0.3424814]
[1644248234587,0.05,43760.0,43757.0,0.01969694]
[1644248234588,0.13911128,43765.0,43757.0,0.01969694]
[1644248234788,0.19920431,43760.0,43757.0,0.01969694]
[1644248235087,0.60083264,43774.0,43759.0,0.05]
[1644248235088,0.0422,43771.0,43759.0,0.05]
[1644248235286,0.0422,43771.0,43757.0,0.01969694]
[1644248235287,0.00586884,43773.0,43757.0,0.06969694]
[1644248235488,0.00586884,43773.0,43758.0,0.3]
[1644248235688,0.02015825,43767.0,43757.0,0.05]
[1644248235893,0.06676966,43763.0,43762.0,0.00057409]
[1644248236089,0.06676966,43763.0,43762.0,0.05057409]
[1644248236291,0.06676966,43763.0,43762.0,0.00057409]
[1644248236892,0.45194368,43765.0,43762.0,0.00057409]
[1644248236893,0.02015825,43767.0,43762.0,0.05]
[1644248237192,0.02015825,43767.0,43766.0,0.05]
[1644248237392,0.02015825,43767.0,43760.0,0.00071979]
[1644248237593,0.0004861,43769.0,43760.0,0.00071979]
[1644248237792,0.24904442,43762.0,43760.0,0.00071979]
[1644248238053,0.00676524,43761.0,43755.0,0.00200684]
[1644248238244,0.0422,43760.0,43755.0,0.00200684]
[1644248238446,0.0422,43760.0,43759.0,0.00071981]
[1644248238645,0.07023848,43761.0,43759.0,0.00071981]
[1644248238841,0.0422,43760.0,43759.0,0.00071981]
[1644248239042,0.40192841,43760.0,43759.0,0.00071981]
[1644248239242,0.0172,43760.0,43759.0,0.00071981]
[1644248239543,0.34800966,43762.0,43759.0,0.05]
[1644248239742,0.1,43762.0,43759.0,0.05]
[1644248240141,0.02009781,43768.0,43759.0,0.05]
[1644248240344,0.02009781,43768.0,43767.0,0.05]
[1644248241142,0.02009781,43768.0,43761.0,0.00069279]
[1644248241143,0.16574213,43769.0,43762.0,0.05]
[1644248241343,0.22895087,43765.0,43762.0,0.05]
[1644248241787,0.06353724,43764.0,43762.0,0.05]
[1644248242588,0.00048611,43769.0,43763.0,0.26238718]
[1644248242789,0.00048611,43769.0,43768.0,0.05]
[1644248243005,0.06139116,43777.0,43768.0,0.05]
[1644248243188,0.06139116,43777.0,43772.0,0.05]
[1644248243391,0.06139116,43777.0,43762.0,0.00066327]
[1644248243392,0.0003878,43769.0,43764.0,0.05]
[1644248243594,0.0003878,43769.0,43762.0,0.00066327]
[1644248243595,0.38240148,43768.0,43762.0,0.00066327]
[1644248243992,0.0003878,43769.0,43765.0,0.04999962]
[1644248244190,0.22892494,43770.0,43765.0,0.04999962]
[1644248244389,0.16035665,43770.0,43765.0,0.04999962]
[1644248244589,0.14784444,43770.0,43765.0,0.04999962]
[1644248244790,0.1191,43766.0,43765.0,0.04999962]
[1644248244991,0.12303,43766.0,43765.0,0.04999962]
[1644248245846,0.14784444,43770.0,43765.0,0.04999962]
[1644248246042,0.04,43777.0,43769.0,0.04999962]
[1644248246346,0.002,43784.0,43777.0,0.8]
[1644248246541,0.002,43784.0,43783.0,0.04999962]
[1644248246744,0.002,43784.0,43778.0,0.24511087]
[1644248246942,0.002,43784.0,43777.0,0.8]
[1644248246943,0.002,43784.0,43777.0,1.1]
[1644248247341,0.001,43786.0,43777.0,0.8]
[1644248247543,0.05,43787.0,43778.0,0.82008185]
[1644248247744,0.39502173,43795.0,43782.0,0.21646737]
[1644248247945,0.44502173,43795.0,43783.0,0.3]
[1644248248143,0.44502173,43795.0,43782.0,0.21646737]
[1644248248144,0.00048518,43784.0,43782.0,0.21646737]
[1644248248744,0.00048518,43784.0,43778.0,1.13435629]
[1644248248745,5.18e-06,43784.0,43778.0,1.13435629]
[1644248248948,0.22879939,43794.0,43778.0,0.87008185]
[1644248249143,0.05,43791.0,43779.0,0.26649121]
[1644248249396,0.051,43798.0,43779.0,0.26649121]
[1644248249598,0.001,43798.0,43779.0,0.26649121]
[1644248249796,0.00803,43796.0,43782.0,0.19071536]
[1644248249996,0.00803,43796.0,43783.0,0.3]
[1644248250196,0.001,43798.0,43783.0,0.3]
[1644248250396,0.04989051,43797.0,43793.0,0.00010949]
[1644248250595,0.001,43798.0,43793.0,0.00010949]
[1644248250796,0.000725,43798.0,43793.0,0.00010949]
[1644248251398,0.20133032,43794.0,43793.0,0.00010949]
[1644248251605,0.000725,43798.0,43793.0,0.00010949]
[1644248251797,0.000725,43798.0,43797.0,0.00010949]
[1644248252000,0.018725,43799.0,43797.0,0.00010949]
[1644248252196,0.018725,43799.0,43793.0,0.20066269]
[1644248252197,0.018725,43799.0,43793.0,0.19577218]
[1644248253053,0.00048398,43798.0,43793.0,0.19577218]
[1644248253247,0.00048398,43798.0,43790.0,0.46735025]
[1644248253248,0.00048398,43798.0,43790.0,0.46312243]
[1644248253447,0.00048398,43798.0,43793.0,0.01935022]
[1644248253649,0.001,43803.0,43793.0,0.01935022]
[1644248253650,0.002,43810.0,43803.0,0.38490457]
[1644248253950,0.002,43810.0,43806.0,0.8]
[1644248254349,0.01098513,43834.0,43811.0,0.03901487]
[1644248254548,0.10117,43844.0,43838.0,0.21411108]
[1644248254549,0.08331832,43844.0,43838.0,0.21411108]
[1644248254748,0.00323916,43877.0,43838.0,0.17803095]
[1644248254749,0.01198513,43845.0,43838.0,0.17803095]
[1644248254949,0.01198513,43845.0,43829.0,0.3]
[1644248254950,0.2258061,43832.0,43829.0,0.3]
[1644248255149,0.01098513,43842.0,43814.0,1.146]
[1644248255150,0.01098513,43838.0,43814.0,1.146]
[1644248255348,0.001,43842.0,43823.0,0.05]
[1644248255349,0.30484332,43841.0,43823.0,0.05]
[1644248255549,0.03588333,43839.0,43838.0,0.02063812]
[1644248255748,0.6,43838.0,43823.0,0.3]
[1644248255950,0.6,43838.0,43808.0,0.02137954]
[1644248255951,0.01098513,43824.0,43808.0,0.02137954]
[1644248256153,0.05,43831.0,43808.0,0.02137954]
[1644248256154,0.3,43830.0,43808.0,0.02137954]
[1644248256352,0.23143641,43830.0,43808.0,0.02137954]
[1644248256549,0.30969737,43816.0,43808.0,0.02137954]
[1644248256789,0.1247277,43811.0,43804.0,0.00195026]
[1644248256987,0.00586884,43816.0,43810.0,0.00137954]
[1644248257189,0.0215313,43819.0,43807.0,0.0284687]
[1644248257388,0.26745708,43838.0,43810.0,0.0284687]
[1644248257588,0.05,43837.0,43812.0,0.75]
[1644248257789,0.01897038,43813.0,43812.0,0.75]
[1644248257987,0.01897038,43813.0,43806.0,0.48850262]
[1644248258188,0.01897038,43813.0,43806.0,0.00057069]
[1644248258390,0.23260641,43833.0,43812.0,0.1]
[1644248258591,0.04981222,43845.0,43827.0,0.05]
[1644248258792,0.05,43847.0,43824.0,0.57134518]
[1644248258991,0.23963065,43825.0,43821.0,0.3]
[1644248259192,0.00045979,43825.0,43815.0,0.3]
[1644248259394,2.375403,43824.0,43823.0,0.05]
[1644248259592,0.00045979,43825.0,43823.0,0.05]
[1644248259791,0.00045979,43825.0,43820.0,0.27382]
[1644248259991,0.00045979,43825.0,43814.0,0.79]
[1644248259992,0.00045979,43825.0,43815.0,0.3]
[1644248260193,0.25911161,43821.0,43815.0,0.3]
[1644248260403,0.00045979,43826.0,43818.0,0.05]
[1644248261158,0.29242952,43828.0,43813.0,0.11767406]
[1644248261159,2.588895,43825.0,43813.0,0.11767406]
[1644248261363,0.06870368,43814.0,43813.0,0.11767406]
[1644248261559,0.01262862,43814.0,43813.0,0.11824467]
[1644248261759,1.79457,43814.0,43813.0,0.11824467]
[1644248261964,0.10045979,43824.0,43813.0,0.01824467]
[1644248262160,0.21902095,43816.0,43813.0,0.01824467]
[1644248262361,0.10632863,43824.0,43813.0,0.01824467]
[1644248262561,0.10632863,43824.0,43812.0,0.18426296]
[1644248262562,0.09302863,43824.0,43812.0,0.18426296]
[1644248262761,0.08108478,43816.0,43809.0,0.00059772]
[1644248263261,0.09302863,43824.0,43809.0,0.00059772]
[1644248263561,0.37655033,43827.0,43813.0,0.05]
[1644248263761,0.02027819,43818.0,43813.0,0.25171706]
[1644248263962,0.01527819,43818.0,43813.0,0.25171706]
[1644248264162,0.01527819,43818.0,43808.0,0.05]
[1644248264163,0.18815339,43819.0,43814.0,0.45]
[1644248264389,0.01857866,43815.0,43806.0,0.05]
[1644248264593,0.5395898,43819.0,43817.0,0.01527819]
[1644248264791,0.26707335,43818.0,43817.0,0.00328882]
[1644248264991,0.27294219,43818.0,43817.0,0.00328882]
[1644248265192,1.34438319,43818.0,43800.0,0.31328963]
[1644248265393,0.26267031,43804.0,43800.0,0.31328963]
[1644248265592,0.3169898,43814.0,43800.0,0.31328963]
[1644248265794,0.4169898,43814.0,43800.0,0.31328963]
[1644248265993,0.4169898,43814.0,43802.0,0.05]
[1644248266191,0.0384,43813.0,43800.0,0.31328963]
[1644248266394,0.0384,43813.0,43805.0,0.00073538]
[1644248266595,0.19927627,43807.0,43805.0,0.00073538]
[1644248266794,0.19427627,43807.0,43805.0,0.00073538]
[1644248266995,0.205717,43806.0,43805.0,0.00073538]
[1644248267296,0.281883,43806.0,43800.0,0.00333252]
[1644248267494,0.45,43800.0,43793.0,0.29]
[1644248267697,0.45,43800.0,43791.0,0.02]
[1644248267698,0.25856464,43798.0,43791.0,0.02]
[1644248267893,0.0384,43797.0,43791.0,0.02]
[1644248268136,0.02819956,43797.0,43791.0,0.02]
[1644248268337,0.3960009,43797.0,43791.0,0.02]
[1644248268638,0.3960009,43797.0,43791.0,0.01]
[1644248268639,0.00374457,43797.0,43791.0,0.01]
[1644248268838,0.10374457,43797.0,43791.0,0.01]
[1644248269238,0.10374457,43797.0,43783.0,0.01706626]
[1644248269239,0.8,43796.0,43783.0,0.01706626]
[1644248269439,0.08734223,43788.0,43783.0,0.01706626]
[1644248269640,0.0384,43787.0,43783.0,0.01706626]
[1644248270038,0.0384,43787.0,43782.0,0.01684881]
[1644248270439,0.0384,43787.0,43771.0,0.02]
[1644248270440,0.24387406,43784.0,43771.0,0.02]
[1644248270641,0.0384,43783.0,43772.0,0.03]
[1644248270842,0.0692378,43773.0,43772.0,0.03]
[1644248271040,0.0692378,43773.0,43771.0,0.15163]
[1644248271041,0.0384,43773.0,43771.0,0.15163]
[1644248271798,0.02113132,43776.0,43772.0,0.85]
[1644248271994,0.02113132,43776.0,43772.0,0.8]
[1644248272294,7.765905,43775.0,43771.0,0.15163]
[1644248272497,7.765905,43775.0,43771.0,0.14598833]
[1644248272498,0.662077,43775.0,43771.0,0.14598833]